fUST/lending_fUST_20250628
["ID","MTS","AMOUNT","RATE_DAILY","PERIOD"]
[368230154,1751068256861,-460.0,0.00019726,2]
[368230156,1751068256870,-151.0,0.00019726,2]
[368230157,1751068256879,-315.634386,0.00019726,2]
[368230160,1751068256889,-151.0,0.00019726,2]
[368230161,1751068256898,-460.0,0.00019726,2]
[368230164,1751068256907,-560.76,0.00019726,2]
[368230165,1751068256917,-460.0,0.00019726,2]
[368230168,1751068256926,-315.634386,0.00019726,2]
[368230169,1751068256935,-460.0,0.00019726,2]
[368230171,1751068256945,-460.0,0.00019726,2]
[368230173,1751068256954,-2668.16,0.00019726,2]
[368230175,1751068256963,-460.0,0.00019726,2]
[368230177,1751068256972,-460.0,0.00019726,2]
[368230179,1751068256982,-460.0,0.00019726,2]
[368230181,1751068256992,-460.0,0.00019726,2]
[368230183,1751068257001,-460.0,0.00019726,2]
[368230185,1751068257010,-460.0,0.00019726,2]
[368230187,1751068257019,-460.0,0.00019726,2]
[368230190,1751068257029,-1431.83,0.00019726,2]
[368230191,1751068257039,-1785.61,0.00019726,2]
[368230193,1751068257048,-460.0,0.00019726,2]
[368230195,1751068257057,-151.0,0.00019726,2]
[368230197,1751068257066,-460.0,0.00019726,2]
[368230199,1751068257075,-460.0,0.00019726,2]
[368230201,1751068257084,-1276.19,0.00019726,2]
[368230203,1751068257094,-460.0,0.00019726,2]
[368230205,1751068257103,-460.0,0.00019726,2]
[368230207,1751068257112,-460.0,0.00019726,2]
[368230208,1751068257121,-460.0,0.00019726,2]
[368230209,1751068257130,-3204.86,0.00019726,2]
[368230210,1751068257139,-461.61587846,0.00019726,2]
[368230211,1751068257148,-460.0,0.00019726,2]
[368230212,1751068257158,-460.0,0.00019726,2]
[368230213,1751068257167,-1087.84,0.00019726,2]
[368230214,1751068257177,-460.0,0.00019726,2]
[368230215,1751068257186,-460.0,0.00019726,2]
[368230216,1751068257195,-460.0,0.00019726,2]
[368230217,1751068257205,-460.0,0.00019726,2]
[368230218,1751068257214,-460.0,0.00019726,2]
[368230219,1751068257224,-151.0,0.00019726,2]
[368230220,1751068257233,-460.0,0.00019726,2]
[368230221,1751068257242,-460.0,0.00019726,2]
[368230222,1751068257251,-460.0,0.00019726,2]
[368230224,1751068257260,-460.0,0.00019726,2]
[368230226,1751068257269,-875.72,0.00019726,2]
[368230228,1751068257279,-188.62224538,0.00019726,2]
[368230230,1751068257288,-151.0,0.00019726,2]
[368230232,1751068257298,-358.20961028,0.00019726,2]
[368230234,1751068257309,-151.0,0.00019726,2]
[368230236,1751068257318,-460.0,0.00019726,2]
[368230238,1751068257327,-961.92,0.00019726,2]
[368230240,1751068257336,-756.46,0.00019726,2]
[368230242,1751068257346,-444.57916917,0.00019726,2]
[368230244,1751068257355,-4598.12,0.00019726,2]
[368230246,1751068257365,-1012.39,0.00019726,2]
[368230248,1751068257374,-460.0,0.00019726,2]
[368230250,1751068257383,-211.248514,0.00019726,2]
[368230252,1751068257393,-460.0,0.00019726,2]
[368230254,1751068257402,-4666.54,0.00019726,2]
[368230256,1751068257411,-211.248514,0.00019726,2]
[368230258,1751068257420,-460.0,0.00019726,2]
[368230260,1751068257430,-460.0,0.00019726,2]
[368230262,1751068257439,-1729.41,0.00019726,2]
[368230264,1751068257448,-460.0,0.00019726,2]
[368230266,1751068257457,-460.0,0.00019726,2]
[368230268,1751068257467,-153.0,0.00019784,2]
[368230270,1751068257476,-420.0,0.00019784,2]
[368230272,1751068257485,-1680.0,0.00019786,2]
[368230274,1751068257496,-1680.0,0.00019881,2]
[368230276,1751068257506,-6289.26151177,0.000199,2]
[368230279,1751068257515,-460.0,0.0002,2]
[368230281,1751068257525,-460.0,0.0002,2]
[368230283,1751068257534,-460.0,0.0002,2]
[368230284,1751068257544,-460.0,0.0002,2]
[368230287,1751068257554,-460.0,0.0002,2]
[368230289,1751068257563,-460.0,0.0002,2]
[368230291,1751068257572,-500.0,0.0002,2]
[368230293,1751068257581,-372.97309805,0.0002,2]
[368230295,1751068257591,-460.0,0.0002,2]
[368230297,1751068257600,-460.0,0.0002,2]
[368230299,1751068257609,-464.44589036,0.0002,2]
[368230301,1751068257618,-460.0,0.0002,2]
[368230303,1751068257627,-460.0,0.0002,2]
[368230305,1751068257636,-460.0,0.0002,2]
[368230307,1751068257645,-460.0,0.0002,2]
[368230309,1751068257654,-460.0,0.0002,2]
[368230311,1751068257663,-411.44467223,0.0002,2]
[368230313,1751068257672,-460.0,0.0002,2]
[368230314,1751068257682,-472.470462,0.0002,2]
[368230316,1751068257692,-547.99322723,0.0002,2]
[368230318,1751068257701,-460.0,0.0002,2]
[368230320,1751068257710,-460.0,0.0002,2]
[368230322,1751068257719,-460.0,0.0002,2]
[368230324,1751068257729,-460.0,0.0002,2]
[368230327,1751068257739,-460.0,0.0002,2]
[368230328,1751068257748,-460.0,0.0002,2]
[368230331,1751068257758,-460.0,0.0002,2]
[368230333,1751068257767,-505.92484511,0.0002,2]
[368230335,1751068257777,-935.73,0.0002,2]
[368230337,1751068257786,-460.0,0.0002,2]
[368230338,1751068257796,-460.0,0.0002,2]
[368230340,1751068257805,-513.13,0.0002,2]
[368230342,1751068257814,-460.0,0.0002,2]
[368230345,1751068257823,-460.0,0.0002,2]
[368230347,1751068257833,-440.1438782,0.0002,2]
[368230348,1751068257842,-460.0,0.0002,2]
[368230350,1751068257851,-460.0,0.0002,2]
[368230352,1751068257862,-1231.63,0.0002,2]
[368230355,1751068257871,-460.24266257,0.0002,2]
[368230357,1751068257880,-460.0,0.0002,2]
[368230359,1751068257890,-460.0,0.0002,2]
[368230361,1751068257901,-460.0,0.0002,2]
[368230362,1751068257910,-460.0,0.0002,2]
[368230365,1751068257921,-564.77,0.0002,2]
[368230367,1751068257930,-460.0,0.0002,2]
[368230369,1751068257939,-460.0,0.0002,2]
[368230370,1751068257949,-460.0,0.0002,2]
[368230373,1751068257959,-460.0,0.0002,2]
[368230375,1751068257968,-460.0,0.0002,2]
[368230376,1751068257978,-460.0,0.0002,2]
[368230378,1751068257987,-460.0,0.0002,2]
[368230381,1751068257997,-460.0,0.0002,2]
[368230382,1751068258006,-151.0,0.0002,2]
[368230384,1751068258015,-580.69,0.0002,2]
[368230386,1751068258024,-462.64775211,0.0002,2]
[368230388,1751068258033,-460.0,0.0002,2]
[368230390,1751068258043,-460.0,0.0002,2]
[368230392,1751068258052,-460.0,0.0002,2]
[368230394,1751068258061,-460.0,0.0002,2]
[368230396,1751068258071,-460.0,0.0002,2]
[368230398,1751068258080,-460.0,0.0002,2]
[368230400,1751068258089,-460.0,0.0002,2]
[368230402,1751068258098,-460.0,0.0002,2]
[368230404,1751068258108,-423.0009509,0.0002,2]
[368230406,1751068258117,-460.0,0.0002,2]
[368230408,1751068258127,-460.0,0.0002,2]
[368230410,1751068258136,-478.61,0.0002,2]
[368230412,1751068258145,-380.88661246,0.0002,2]
[368230414,1751068258154,-460.0,0.0002,2]
[368230416,1751068258163,-460.0,0.0002,2]
[368230418,1751068258172,-460.0,0.0002,2]
[368230420,1751068258181,-445.31,0.0002,2]
[368230422,1751068258190,-460.0,0.0002,2]
[368230424,1751068258200,-151.0,0.0002,2]
[368230426,1751068258209,-460.0,0.0002,2]
[368230428,1751068258218,-460.0,0.0002,2]
[368230431,1751068258228,-460.0,0.0002,2]
[368230433,1751068258239,-460.0,0.0002,2]
[368230435,1751068258248,-460.0,0.0002,2]
[368230437,1751068258257,-460.0,0.0002,2]
[368230439,1751068258266,-460.0,0.0002,2]
[368230441,1751068258275,-1126.41,0.0002,2]
[368230443,1751068258285,-460.0,0.0002,2]
[368230445,1751068258294,-203.487797,0.0002,2]
[368230447,1751068258306,-304.861779,0.0002,2]
[368230449,1751068258315,-465.57250391,0.0002,2]
[368230451,1751068258324,-460.0,0.0002,2]
[368230453,1751068258334,-460.0,0.0002,2]
[368230455,1751068258343,-203.487797,0.0002,2]
[368230457,1751068258352,-460.0,0.0002,2]
[368230459,1751068258361,-685.33,0.0002,2]
[368230461,1751068258371,-151.0,0.0002,2]
[368230463,1751068258380,-460.0,0.0002,2]
[368230465,1751068258389,-2633.95,0.0002,2]
[368230467,1751068258399,-460.0,0.0002,2]
[368230468,1751068258408,-460.0,0.0002,2]
[368230470,1751068258417,-602.73,0.0002,2]
[368230473,1751068258426,-460.0,0.0002,2]
[368230475,1751068258438,-775.61,0.0002,2]
[368230477,1751068258449,-462.48138794,0.0002,2]
[368230479,1751068258458,-460.0,0.0002,2]
[368230481,1751068258467,-452.76292991,0.0002,2]
[368230483,1751068258477,-1188.33,0.0002,2]
[368230485,1751068258486,-460.0,0.0002,2]
[368230487,1751068258496,-978.942829,0.0002,2]
[368230489,1751068258505,-300.0,0.0002,2]
[368230491,1751068258514,-461.80433487,0.0002,2]
[368230493,1751068258523,-460.0,0.0002,2]
[368230495,1751068258533,-978.942829,0.0002,2]
[368230497,1751068258543,-460.0,0.0002,2]
[368230499,1751068258552,-460.0,0.0002,2]
[368230501,1751068258561,-460.0,0.0002,2]
[368230503,1751068258571,-460.0,0.0002,2]
[368230505,1751068258579,-160.800168,0.0002,2]
[368230507,1751068258589,-151.0,0.0002,2]
[368230509,1751068258598,-151.0,0.0002,2]
[368230511,1751068258607,-460.0,0.0002,2]
[368230513,1751068258616,-460.0,0.0002,2]
[368230515,1751068258626,-160.800168,0.0002,2]
[368230517,1751068258635,-460.0,0.0002,2]
[368230519,1751068258644,-471.98705521,0.0002,2]
[368230521,1751068258652,-460.0,0.0002,2]
[368230523,1751068258662,-460.0,0.0002,2]
[368230525,1751068258671,-460.0,0.0002,2]
[368230527,1751068258680,-151.0,0.0002,2]
[368230529,1751068258689,-460.0,0.0002,2]
[368230531,1751068258698,-555.04,0.0002,2]
[368230533,1751068258707,-460.0,0.0002,2]
[368230535,1751068258717,-6720.85,0.0002,2]
[368230537,1751068258727,-389.39979468,0.0002,2]
[368230539,1751068258736,-151.0,0.0002,2]
[368230541,1751068258746,-460.0,0.0002,2]
[368230543,1751068258755,-460.0,0.0002,2]
[368230545,1751068258764,-460.0,0.0002,2]
[368230547,1751068258773,-460.0,0.0002,2]
[368230549,1751068258782,-151.0,0.0002,2]
[368230551,1751068258792,-266.869812,0.0002,2]
[368230553,1751068258801,-460.0,0.0002,2]
[368230555,1751068258811,-460.0,0.0002,2]
[368230557,1751068258820,-151.0,0.0002,2]
[368230559,1751068258829,-6059.72,0.0002,2]
[368230561,1751068258838,-278.915758,0.0002,2]
[368230563,1751068258847,-197.086534,0.0002,2]
[368230576,1751068258963,-1858.25,0.0002,2]
[368230578,1751068258974,-470.6715418,0.0002,2]
[368230580,1751068258983,-460.0,0.0002,2]
[368230583,1751068258994,-460.0,0.0002,2]
[368230585,1751068259003,-460.0,0.0002,2]
[368230587,1751068259012,-197.086534,0.0002,2]
[368230589,1751068259022,-460.0,0.0002,2]
[368230591,1751068259031,-627.71,0.0002,2]
[368230593,1751068259040,-2632.06,0.0002,2]
[368230595,1751068259049,-460.0,0.0002,2]
[368230597,1751068259058,-460.0,0.0002,2]
[368230599,1751068259067,-460.0,0.0002,2]
[368230601,1751068259077,-460.0,0.0002,2]
[368230603,1751068259086,-460.0,0.0002,2]
[368230604,1751068259095,-1731.49,0.0002,2]
[368230607,1751068259105,-460.0,0.0002,2]
[368230609,1751068259114,-460.0,0.0002,2]
[368230611,1751068259123,-460.0,0.0002,2]
[368230613,1751068259133,-4205.16,0.0002,2]
[368230615,1751068259142,-460.0,0.0002,2]
[368230617,1751068259151,-842.34,0.0002,2]
[368230618,1751068259160,-2188.05,0.0002,2]
[368230621,1751068259170,-858.75,0.0002,2]
[368230623,1751068259179,-460.0,0.0002,2]
[368230625,1751068259188,-765.63,0.0002,2]
[368230627,1751068259197,-460.0,0.0002,2]
[368230628,1751068259207,-666.482233,0.0002,2]
[368230631,1751068259216,-1775.32,0.0002,2]
[368230632,1751068259226,-460.0,0.0002,2]
[368230634,1751068259235,-666.482233,0.0002,2]
[368230636,1751068259243,-460.0,0.0002,2]
[368230638,1751068259253,-460.0,0.0002,2]
[368230640,1751068259262,-460.0,0.0002,2]
[368230642,1751068259272,-715.26,0.0002,2]
[368230645,1751068259282,-1383.95,0.0002,2]
[368230647,1751068259291,-500.0,0.0002,2]
[368230649,1751068259305,-742.27,0.0002,2]
[368230651,1751068259315,-536.32,0.0002,2]
[368230653,1751068259324,-460.0,0.0002,2]
[368230655,1751068259333,-460.0,0.0002,2]
[368230657,1751068259342,-1160.83,0.0002,2]
[368230659,1751068259351,-650.5,0.0002,2]
[368230661,1751068259360,-460.0,0.0002,2]
[368230663,1751068259369,-4032.26,0.0002,2]
[368230665,1751068259379,-460.0,0.0002,2]
[368230667,1751068259389,-947.45,0.0002,2]
[368230669,1751068259398,-460.0,0.0002,2]
[368230671,1751068259407,-460.0,0.0002,2]
[368230673,1751068259415,-471.17526488,0.0002,2]
[368230675,1751068259425,-460.0,0.0002,2]
[368230677,1751068259434,-460.0,0.0002,2]
[368230679,1751068259443,-460.0,0.0002,2]
[368230681,1751068259452,-3901.79,0.0002,2]
[368230683,1751068259464,-829.11,0.0002,2]
[368230685,1751068259473,-787.52,0.0002,2]
[368230686,1751068259484,-467.12049993,0.0002,2]
[368230689,1751068259493,-460.0,0.0002,2]
[368230691,1751068259504,-2096.66,0.0002,2]
[368230693,1751068259513,-460.0,0.0002,2]
[368230695,1751068259523,-460.0,0.0002,2]
[368230697,1751068259532,-4853.84,0.0002,2]
[368230699,1751068259541,-503.48574085,0.0002,2]
[368230701,1751068259550,-460.0,0.0002,2]
[368230703,1751068259559,-762.24,0.0002,2]
[368230705,1751068259569,-742.59,0.0002,2]
[368230707,1751068259578,-456.48383248,0.0002,2]
[368230709,1751068259588,-503.06267903,0.0002,2]
[368230711,1751068259597,-460.0,0.0002,2]
[368230713,1751068259607,-922.39,0.0002,2]
[368230714,1751068259616,-460.0,0.0002,2]
[368230717,1751068259626,-460.0,0.0002,2]
[368230719,1751068259635,-461.57248635,0.0002,2]
[368230720,1751068259644,-650.45,0.0002,2]
[368230723,1751068259653,-376.16369989,0.0002,2]
[368230725,1751068259663,-460.0,0.0002,2]
[368230727,1751068259672,-762.98,0.0002,2]
[368230729,1751068259681,-460.0,0.0002,2]
[368230730,1751068259690,-460.0,0.0002,2]
[368230732,1751068259699,-460.0,0.0002,2]
[368230734,1751068259709,-460.0,0.0002,2]
[368230736,1751068259718,-470.0,0.0002,2]
[368230739,1751068259728,-460.0,0.0002,2]
[368230740,1751068259738,-943.11,0.0002,2]
[368230742,1751068259747,-2330.57,0.0002,2]
[368230744,1751068259757,-460.0,0.0002,2]
[368230746,1751068259767,-3250.01,0.0002,2]
[368230748,1751068259776,-460.0,0.0002,2]
[368230750,1751068259785,-460.0,0.0002,2]
[368230752,1751068259796,-560.76,0.0002,2]
[368230754,1751068259805,-460.0,0.0002,2]
[368230755,1751068259814,-460.0,0.0002,2]
[368230756,1751068259823,-460.0,0.0002,2]
[368230757,1751068259832,-2668.16,0.0002,2]
[368230758,1751068259842,-416.60736158,0.0002,2]
[368230759,1751068259851,-460.0,0.0002,2]
[368230760,1751068259860,-460.0,0.0002,2]
[368230761,1751068259869,-460.0,0.0002,2]
[368230762,1751068259878,-608.85,0.0002,2]
[368230763,1751068259887,-206.83702132,0.0002,2]
[368230764,1751068259896,-1431.83,0.0002,2]
[368230765,1751068259907,-1785.61,0.0002,2]
[368230766,1751068259916,-460.0,0.0002,2]
[368230767,1751068259925,-460.0,0.0002,2]
[368230768,1751068259934,-1276.19,0.0002,2]
[368230770,1751068259943,-460.0,0.0002,2]
[368230772,1751068259952,-460.0,0.0002,2]
[368230774,1751068259962,-460.0,0.0002,2]
[368230776,1751068259971,-266.59089114,0.0002,2]
[368230778,1751068259980,-3204.86,0.0002,2]
[368230780,1751068259990,-460.0,0.0002,2]
[368230782,1751068260000,-1087.84,0.0002,2]
[368230784,1751068260009,-460.0,0.0002,2]
[368230786,1751068260019,-460.0,0.0002,2]
[368230788,1751068260028,-460.0,0.0002,2]
[368230790,1751068260038,-460.0,0.0002,2]
[368230792,1751068260047,-460.0,0.0002,2]
[368230794,1751068260057,-157.28162691,0.0002,2]
[368230796,1751068260067,-460.0,0.0002,2]
[368230798,1751068260077,-460.0,0.0002,2]
[368230800,1751068260086,-875.72,0.0002,2]
[368230802,1751068260095,-162.45,0.0002,2]
[368230804,1751068260104,-961.92,0.0002,2]
[368230806,1751068260113,-460.0,0.0002,2]
[368230808,1751068260123,-756.46,0.0002,2]
[368230810,1751068260133,-4598.12,0.0002,2]
[368230812,1751068260142,-510.23712706,0.0002,2]
[368230815,1751068260152,-1012.39,0.0002,2]
[368230817,1751068260161,-460.0,0.0002,2]
[368230819,1751068260171,-4666.54,0.0002,2]
[368230820,1751068260182,-460.0,0.0002,2]
[368230823,1751068260191,-1729.41,0.0002,2]
[368230824,1751068260201,-460.0,0.0002,2]
[368230827,1751068260210,-1000.0,0.00020021,2]
[368230829,1751068260221,-1000.0,0.00020021,2]
[368230831,1751068260232,-151.0,0.000201,4]
[368230833,1751068260241,-214.91804724,0.00020129,2]
[368230835,1751068260252,-160.0,0.00020129,2]
[368230837,1751068260262,-160.0,0.00020129,2]
[368230839,1751068260272,-847.04181546,0.00020129,2]
[368230841,1751068260281,-230.26210603,0.00020129,2]
[368230843,1751068260291,-12562.41216491,0.00020129,2]
[368230845,1751068260305,-160.0,0.00020129,2]
[368230847,1751068260314,-836.98798914,0.00020129,2]
[368230849,1751068260324,-213.75309343,0.00020129,2]
[368230851,1751068260335,-160.0,0.00020129,2]
[368230853,1751068260344,-160.0,0.00020129,2]
[368230855,1751068260353,-160.0,0.00020129,2]
[368230857,1751068260362,-160.0,0.0002013,2]
[368230859,1751068260372,-160.0,0.0002013,2]
[368230861,1751068260381,-151.0,0.00020141,2]
[368230863,1751068260390,-151.0,0.00020141,2]
[368230865,1751068260400,-6289.26151161,0.00020141,2]
[368230867,1751068260409,-400.29461,0.00020187,2]
[368230869,1751068260419,-1500.0,0.00020268,2]
[368230871,1751068260427,-460.0,0.00020273,2]
[368230873,1751068260438,-460.0,0.00020273,2]
[368230875,1751068260447,-225.19243511,0.00020273,2]
[368230877,1751068260456,-460.0,0.00020273,2]
[368230879,1751068260466,-460.0,0.00020273,2]
[368230881,1751068260475,-460.0,0.00020273,2]
[368230883,1751068260484,-460.0,0.00020273,2]
[368230885,1751068260493,-446.18024661,0.00020273,2]
[368230887,1751068260503,-468.14,0.00020273,2]
[368230889,1751068260513,-460.0,0.00020273,2]
[368230891,1751068260522,-152.006539,0.00020273,2]
[368230893,1751068260531,-151.0,0.00020273,2]
[368230895,1751068260540,-460.0,0.00020273,2]
[368230897,1751068260550,-460.0,0.00020273,2]
[368230899,1751068260559,-460.0,0.00020273,2]
[368230901,1751068260568,-151.0,0.00020273,2]
[368230903,1751068260577,-460.0,0.00020273,2]
[368230905,1751068260586,-460.0,0.00020273,2]
[368230906,1751068260596,-151.0,0.00020273,2]
[368230908,1751068260605,-151.0,0.00020273,2]
[368230910,1751068260614,-935.73,0.00020273,2]
[368230912,1751068260623,-460.0,0.00020273,2]
[368230914,1751068260633,-460.0,0.00020273,2]
[368230916,1751068260642,-513.13,0.00020273,2]
[368230918,1751068260651,-460.0,0.00020273,2]
[368230920,1751068260661,-460.0,0.00020273,2]
[368230922,1751068260670,-460.0,0.00020273,2]
[368230924,1751068260679,-151.0,0.00020273,2]
[368230926,1751068260688,-460.0,0.00020273,2]
[368230928,1751068260697,-151.0,0.00020273,2]
[368230930,1751068260706,-1231.63,0.00020273,2]
[368230932,1751068260716,-460.0,0.00020273,2]
[368230935,1751068260726,-535.4572313,0.00020273,2]
[368230937,1751068260735,-460.0,0.00020273,2]
[368230939,1751068260745,-151.0,0.00020273,2]
[368230941,1751068260754,-564.77,0.00020273,2]
[368230942,1751068260763,-231.27,0.00020273,2]
[368230944,1751068260772,-460.0,0.00020273,2]
[368230946,1751068260782,-460.0,0.00020273,2]
[368230948,1751068260791,-460.0,0.00020273,2]
[368230950,1751068260800,-151.0,0.00020273,2]
[368230952,1751068260809,-560.98375565,0.00020273,2]
[368230954,1751068260819,-460.0,0.00020273,2]
[368230956,1751068260828,-460.0,0.00020273,2]
[368230958,1751068260838,-151.0,0.00020273,2]
[368230960,1751068260848,-151.0,0.00020273,2]
[368230962,1751068260857,-460.0,0.00020273,2]
[368230964,1751068260866,-155.218412,0.00020273,2]
[368230966,1751068260875,-278.379418,0.00020273,2]
[368230968,1751068260884,-580.69,0.00020273,2]
[368230970,1751068260894,-155.218412,0.00020273,2]
[368230972,1751068260903,-278.379418,0.00020273,2]
[368230974,1751068260912,-460.0,0.00020273,2]
[368230976,1751068260921,-460.0,0.00020273,2]
[368230978,1751068260931,-460.0,0.00020273,2]
[368230980,1751068260940,-460.0,0.00020273,2]
[368230982,1751068260949,-460.0,0.00020273,2]
[368230984,1751068260958,-460.0,0.00020273,2]
[368230986,1751068260968,-478.61,0.00020273,2]
[368230988,1751068260977,-460.0,0.00020273,2]
[368230990,1751068260986,-460.0,0.00020273,2]
[368230992,1751068260997,-460.0,0.00020273,2]
[368230994,1751068261008,-460.0,0.00020273,2]
[368230996,1751068261018,-460.0,0.00020273,2]
[368230998,1751068261028,-460.0,0.00020273,2]
[368231000,1751068261037,-460.0,0.00020273,2]
[368231002,1751068261047,-460.0,0.00020273,2]
[368231004,1751068261056,-460.0,0.00020273,2]
[368231006,1751068261066,-460.0,0.00020273,2]
[368231008,1751068261075,-1126.41,0.00020273,2]
[368231010,1751068261084,-460.0,0.00020273,2]
[368231012,1751068261093,-460.0,0.00020273,2]
[368231014,1751068261103,-460.0,0.00020273,2]
[368231016,1751068261112,-685.33,0.00020273,2]
[368231018,1751068261121,-220.2005835,0.00020273,2]
[368231020,1751068261131,-2633.95,0.00020273,2]
[368231022,1751068261140,-460.0,0.00020273,2]
[368231024,1751068261149,-460.0,0.00020273,2]
[368231026,1751068261159,-602.73,0.00020273,2]
[368231028,1751068261168,-775.61,0.00020273,2]
[368231030,1751068261177,-460.0,0.00020273,2]
[368231032,1751068261187,-1188.33,0.00020273,2]
[368231045,1751068261289,-460.0,0.00020273,2]
[368231047,1751068261312,-463.43981112,0.00020273,2]
[368231049,1751068261321,-460.0,0.00020273,2]
[368231051,1751068261331,-460.0,0.00020273,2]
[368231053,1751068261341,-460.0,0.00020273,2]
[368231055,1751068261352,-460.0,0.00020273,2]
[368231057,1751068261362,-151.0,0.00020273,2]
[368231059,1751068261371,-460.0,0.00020273,2]
[368231061,1751068261381,-460.0,0.00020273,2]
[368231063,1751068261392,-460.0,0.00020273,2]
[368231065,1751068261402,-460.0,0.00020273,2]
[368231067,1751068261411,-460.0,0.00020273,2]
[368231069,1751068261421,-460.0,0.00020273,2]
[368231071,1751068261430,-460.0,0.00020273,2]
[368231073,1751068261439,-555.04,0.00020273,2]
[368231076,1751068261449,-6720.85,0.00020273,2]
[368231078,1751068261459,-460.0,0.00020273,2]
[368231080,1751068261468,-460.0,0.00020273,2]
[368231081,1751068261477,-460.0,0.00020273,2]
[368231083,1751068261486,-460.0,0.00020273,2]
[368231085,1751068261495,-460.0,0.00020273,2]
[368231087,1751068261504,-460.0,0.00020273,2]
[368231089,1751068261513,-6059.72,0.00020273,2]
[368231091,1751068261523,-1858.25,0.00020273,2]
[368231093,1751068261532,-460.0,0.00020273,2]
[368231095,1751068261541,-460.0,0.00020273,2]
[368231097,1751068261551,-460.0,0.00020273,2]
[368231099,1751068261561,-460.0,0.00020273,2]
[368231101,1751068261570,-627.71,0.00020273,2]
[368231103,1751068261579,-2632.06,0.00020273,2]
[368231105,1751068261589,-460.0,0.00020273,2]
[368231107,1751068261599,-460.0,0.00020273,2]
[368231109,1751068261609,-460.0,0.00020273,2]
[368231111,1751068261618,-460.0,0.00020273,2]
[368231113,1751068261628,-460.0,0.00020273,2]
[368231115,1751068261638,-1731.49,0.00020273,2]
[368231117,1751068261648,-460.0,0.00020273,2]
[368231120,1751068261657,-460.0,0.00020273,2]
[368231122,1751068261667,-460.0,0.00020273,2]
[368231124,1751068261676,-4205.16,0.00020273,2]
[368231126,1751068261685,-460.0,0.00020273,2]
[368231128,1751068261694,-842.34,0.00020273,2]
[368231130,1751068261704,-2188.05,0.00020273,2]
[368231132,1751068261714,-858.75,0.00020273,2]
[368231134,1751068261723,-460.0,0.00020273,2]
[368231136,1751068261733,-765.63,0.00020273,2]
[368231138,1751068261742,-666.482233,0.00020273,2]
[368231140,1751068261751,-1775.32,0.00020273,2]
[368231142,1751068261761,-469.88235906,0.00020273,2]
[368231144,1751068261770,-666.482233,0.00020273,2]
[368231146,1751068261780,-460.0,0.00020273,2]